bitfinex-derivatives/quotes_BTCF0:USTF0_20240907
["timestamp","ask_amount","ask_price","bid_price","bid_amount"]
[1725735480948,0.106065,54312.0,54311.0,0.11989339]
[1725735481344,0.101065,54312.0,54311.0,0.11989339]
[1725735481554,0.105065,54312.0,54311.0,0.19310488]
[1725735482044,0.104065,54312.0,54311.0,0.19310488]
[1725735482247,0.104065,54312.0,54311.0,0.11989339]
[1725735482857,0.012,54312.0,54311.0,0.11989339]
[1725735483059,0.012,54312.0,54311.0,0.19310488]
[1725735484756,0.112,54312.0,54311.0,0.19310488]
[1725735484956,0.200065,54312.0,54311.0,0.19310488]
[1725735485863,0.194065,54312.0,54311.0,0.19310488]
[1725735486057,0.199065,54312.0,54311.0,0.19310488]
[1725735486257,0.199065,54312.0,54311.0,0.11989339]
[1725735486757,0.200065,54312.0,54311.0,0.11989339]
[1725735487465,0.199065,54312.0,54311.0,0.11989339]
[1725735487966,0.202065,54312.0,54311.0,0.11989339]
[1725735488462,0.204065,54312.0,54311.0,0.092065]
[1725735491264,0.25257536,54312.0,54311.0,0.092065]
[1725735491467,0.26057536,54312.0,54311.0,0.092065]
[1725735492367,0.25957536,54312.0,54311.0,0.092065]
[1725735493061,0.26057536,54312.0,54311.0,0.092065]
[1725735493863,0.204065,54312.0,54311.0,0.092065]
[1725735496369,0.204065,54312.0,54311.0,0.32388478]
[1725735496565,0.200065,54312.0,54311.0,0.32388478]
[1725735496866,0.204065,54312.0,54311.0,0.32388478]
[1725735497262,0.204065,54312.0,54311.0,0.18358517]
[1725735497461,0.204065,54312.0,54311.0,0.32388517]
[1725735499262,0.092066,54311.0,54310.0,0.028439]
[1725735499463,0.186866,54311.0,54310.0,0.092068]
[1725735501175,0.192866,54311.0,54310.0,0.092068]
[1725735501473,0.201866,54311.0,54310.0,0.092068]
[1725735501673,0.198866,54311.0,54310.0,0.092068]
[1725735502063,0.189866,54311.0,54310.0,0.092068]
[1725735502269,0.196866,54311.0,54310.0,0.092068]
[1725735509176,0.25337864,54311.0,54310.0,0.092068]
[1725735510474,0.24637864,54311.0,54310.0,0.092068]
[1725735510676,0.25337864,54311.0,54310.0,0.092068]
[1725735510879,0.25437864,54311.0,54310.0,0.092068]
[1725735511776,0.24737864,54311.0,54310.0,0.092068]
[1725735511975,0.25537864,54311.0,54310.0,0.092068]
[1725735513476,0.25137864,54311.0,54310.0,0.092068]
[1725735513783,0.25537864,54311.0,54310.0,0.092068]
[1725735514682,0.25537876,54311.0,54310.0,0.092068]
[1725735514878,0.18415,54306.0,54305.0,0.02851611]
[1725735515078,0.18415,54306.0,54305.0,0.02755611]
[1725735515079,0.34066309,54306.0,54305.0,0.02755611]
[1725735515297,0.15651309,54306.0,54296.0,0.0481]
[1725735515581,0.11143947,54310.0,54296.0,0.0481]
[1725735515582,0.09209,54297.0,54296.0,0.0481]
[1725735516182,0.1,54299.0,54294.0,0.092094]
[1725735516183,0.092095,54295.0,54294.0,0.092094]
[1725735516990,0.092086,54300.0,54294.0,0.35995048]
[1725735517190,0.09208,54303.0,54300.0,0.092084]
[1725735517389,0.09208,54303.0,54301.0,0.092083]
[1725735517687,0.09208,54303.0,54302.0,0.092082]
[1725735517887,0.192074,54307.0,54304.0,0.092077]
[1725735518091,0.092076,54306.0,54304.0,0.092077]
[1725735518289,0.092076,54306.0,54305.0,0.092077]
[1725735518494,0.192069,54310.0,54306.0,0.092073]
[1725735518794,0.192069,54310.0,54303.0,0.1]
[1725735518795,0.1,54310.0,54303.0,0.1]
[1725735518992,0.1,54310.0,54307.0,0.092073]
[1725735519289,0.092072,54308.0,54307.0,0.092073]
[1725735520485,0.106072,54308.0,54307.0,0.092073]
[1725735520696,0.120072,54308.0,54307.0,0.092073]
[1725735522302,0.120072,54308.0,54307.0,0.192073]
[1725735522303,0.028,54308.0,54307.0,0.192073]
[1725735522681,0.028,54308.0,54307.0,0.092073]
[1725735523010,0.028,54308.0,54307.0,0.12044778]
[1725735524991,0.120072,54308.0,54307.0,0.12044778]
[1725735530194,0.028,54308.0,54307.0,0.12044778]
[1725735530398,0.120072,54308.0,54307.0,0.12044778]
[1725735531595,0.120072,54308.0,54307.0,0.092073]
[1725735532181,0.167172,54308.0,54307.0,0.092073]
[1725735533798,0.216272,54308.0,54307.0,0.092073]
[1725735534187,0.24374386,54308.0,54307.0,0.092073]
[1725735534798,0.216272,54308.0,54307.0,0.092073]
[1725735543503,0.216272,54308.0,54307.0,0.14704697]
[1725735544200,0.202272,54308.0,54307.0,0.14704697]
[1725735544497,0.194272,54308.0,54307.0,0.14704697]
[1725735544812,0.196272,54308.0,54307.0,0.14704697]
[1725735545004,0.190272,54308.0,54307.0,0.14704697]
[1725735545199,0.22303445,54308.0,54307.0,0.14704697]
[1725735545913,0.196272,54308.0,54307.0,0.14704697]
[1725735546297,0.22317256,54308.0,54307.0,0.14704697]
[1725735546497,0.22318438,54308.0,54307.0,0.14704697]
[1725735546697,0.196272,54308.0,54307.0,0.14704697]
[1725735546901,0.39844649,54308.0,54307.0,0.092073]
[1725735547101,0.45496412,54308.0,54307.0,0.092073]
[1725735547704,0.15658963,54308.0,54307.0,0.092073]
[1725735547908,0.06451763,54308.0,54307.0,0.092073]
[1725735548105,0.06451763,54308.0,54307.0,0.276219]
[1725735548811,0.06451763,54308.0,54307.0,1.428619]
[1725735549513,0.06451763,54308.0,54307.0,0.828619]
[1725735550713,0.20217449,54318.0,54307.0,1.1524]
[1725735550920,0.20217449,54318.0,54317.0,0.092056]
[1725735551314,0.20217449,54319.0,54318.0,0.092055]
[1725735551509,0.20217449,54320.0,54319.0,0.092053]
[1725735551708,0.20217449,54323.0,54322.0,0.092048]
[1725735552612,0.20217449,54324.0,54323.0,0.092046]
[1725735552818,0.25867774,54324.0,54323.0,0.092046]
[1725735553413,0.25867773,54324.0,54323.0,0.092046]
[1725735553816,0.21617449,54324.0,54323.0,0.092046]
[1725735554117,0.014,54324.0,54323.0,0.092046]
[1725735554910,0.028,54324.0,54323.0,0.093046]
[1725735559026,0.14806901,54324.0,54323.0,0.093046]
[1725735560227,0.120044,54324.0,54323.0,0.093046]
[1725735561827,0.17654753,54324.0,54323.0,0.093046]
[1725735568633,0.08450353,54324.0,54323.0,0.093046]
[1725735568827,0.028,54324.0,54323.0,0.093046]
[1725735569926,0.028,54324.0,54323.0,0.185092]
[1725735570120,0.028,54324.0,54323.0,0.232392]
[1725735577031,0.08449559,54324.0,54323.0,0.232392]
[1725735578221,0.08449559,54324.0,54323.0,0.185092]
[1725735578632,0.08449558,54324.0,54323.0,0.185092]
[1725735581125,0.08449558,54324.0,54323.0,0.737332]
[1725735581729,0.08449558,54324.0,54323.0,0.185092]
[1725735584035,0.028,54324.0,54323.0,0.185092]
[1725735586540,0.028,54324.0,54323.0,0.093046]
[1725735586836,0.028,54324.0,54323.0,0.193046]
[1725735599445,0.08449658,54324.0,54323.0,0.193046]
[1725735599638,0.13169658,54324.0,54323.0,0.193046]
[1725735600444,0.13169658,54324.0,54313.0,0.092062]
[1725735600445,0.22374058,54324.0,54317.0,0.092055]
[1725735600645,0.20256927,54319.0,54318.0,0.092055]
[1725735600846,0.20256927,54319.0,54318.0,0.1]
[1725735600847,0.05650086,54319.0,54318.0,0.1]
[1725735601241,0.05650086,54319.0,54318.0,0.192055]
[1725735602543,0.05650152,54321.0,54320.0,0.092051]
[1725735603352,0.14855252,54321.0,54318.0,0.001]
[1725735603538,0.05650152,54320.0,54318.0,0.101]
[1725735603744,0.05550152,54319.0,54318.0,0.192055]
[1725735604052,0.10120152,54319.0,54318.0,0.192055]
[1725735605353,0.10120152,54319.0,54306.0,0.092073]
[1725735605354,0.092055,54318.0,54317.0,0.02832533]
[1725735605539,0.092055,54318.0,54315.0,0.192059]
[1725735605742,0.20244003,54317.0,54312.0,0.092064]
[1725735605938,0.29450303,54313.0,54312.0,0.092064]
[1725735606339,0.092065,54312.0,54309.0,0.19207]
[1725735606543,0.34346798,54312.0,54309.0,0.19207]
[1725735606744,0.34346798,54312.0,54310.0,0.092068]
[1725735606941,0.34346798,54312.0,54311.0,0.14029327]
[1725735607150,0.29740979,54312.0,54311.0,0.24029327]
[1725735607548,0.30540979,54312.0,54311.0,0.24029327]
[1725735607749,0.26340298,54312.0,54311.0,0.33235927]
[1725735608058,0.21440298,54312.0,54311.0,0.53320964]
[1725735608243,0.21440298,54312.0,54311.0,0.42442527]
[1725735608244,0.21040298,54312.0,54311.0,0.42442527]
[1725735608444,0.21640298,54312.0,54311.0,0.42442527]
[1725735608851,0.20840298,54312.0,54311.0,0.42442527]
[1725735609046,0.21840298,54312.0,54311.0,0.42442527]
[1725735609556,0.21840298,54312.0,54311.0,0.53425433]
[1725735609944,0.21840298,54312.0,54311.0,0.56166551]
[1725735611550,0.21840298,54312.0,54311.0,0.46959951]
[1725735612351,0.21840298,54312.0,54311.0,0.46958858]
[1725735613660,0.21840298,54312.0,54311.0,0.56165458]
[1725735614054,0.21840298,54312.0,54311.0,0.31154318]
[1725735614553,0.21840298,54312.0,54311.0,0.36034318]
[1725735616061,0.21840298,54312.0,54311.0,0.45034318]
[1725735616360,0.016,54312.0,54311.0,0.45034318]
[1725735618449,0.011,54312.0,54311.0,0.45334318]
[1725735618960,0.011,54312.0,54311.0,0.54485321]
[1725735619254,0.002,54312.0,54311.0,0.55085321]
[1725735620051,0.001,54312.0,54311.0,0.54485321]
[1725735620252,0.002,54312.0,54311.0,0.55085321]
[1725735620552,0.001,54312.0,54311.0,0.68813464]
[1725735620747,0.002,54312.0,54311.0,0.69313464]
[1725735622048,0.002,54312.0,54311.0,0.77237096]
[1725735622856,0.0464,54321.0,54320.0,0.092051]
[1725735623454,0.0464,54321.0,54320.0,0.16526191]
[1725735623856,0.0492,54327.0,54320.0,0.16526191]
[1725735624058,0.0492,54327.0,54326.0,0.24490449]
[1725735624248,0.0492,54327.0,54326.0,0.19]
[1725735624447,0.0492,54327.0,54326.0,0.282041]
[1725735624964,0.0492,54327.0,54326.0,0.35524699]
[1725735625269,0.0492,54327.0,54326.0,0.282041]
[1725735625563,0.0572,54327.0,54326.0,0.283041]
[1725735626166,0.0572,54327.0,54326.0,0.35624699]
[1725735626360,0.0682,54327.0,54326.0,0.284041]
[1725735627064,0.0682,54327.0,54326.0,0.35724699]
[1725735628360,0.0682,54327.0,54326.0,0.284041]
[1725735629466,0.0682,54327.0,54326.0,0.31158579]
[1725735633267,0.0682,54327.0,54326.0,0.12158579]
[1725735633471,0.160239,54327.0,54326.0,0.002]
[1725735636868,0.18839153,54327.0,54326.0,0.002]
[1725735637167,0.24488838,54327.0,54326.0,0.002]
[1725735637366,0.18839153,54327.0,54326.0,0.002]
[1725735637563,0.24488838,54327.0,54326.0,0.002]
[1725735638160,0.26721543,54327.0,54326.0,0.002]
[1725735638873,1.39708838,54327.0,54316.0,0.62506011]
[1725735639067,1.39708838,54327.0,54312.0,0.07899595]
[1725735639068,0.1,54321.0,54319.0,0.092052]
[1725735639369,0.0945,54320.0,54319.0,0.092052]
[1725735639763,0.185553,54320.0,54319.0,0.092052]
[1725735639965,0.092055,54318.0,54317.0,0.1]
[1725735640764,0.092055,54318.0,54317.0,0.192056]
[1725735642177,0.102055,54318.0,54317.0,0.192056]
[1725735642676,0.102055,54318.0,54317.0,0.092056]
[1725735642872,0.1585592,54318.0,54317.0,0.092056]
[1725735644070,0.102055,54318.0,54317.0,0.16526199]
[1725735644669,0.103055,54318.0,54317.0,0.16526199]
[1725735645278,0.102055,54318.0,54317.0,0.16526199]
[1725735645479,0.095055,54318.0,54317.0,0.16526199]
[1725735645780,0.103055,54318.0,54317.0,0.16526199]
[1725735647775,0.096055,54318.0,54317.0,0.16526199]
[1725735647984,0.103055,54318.0,54317.0,0.16526199]
[1725735650374,0.102055,54318.0,54317.0,0.16526199]
[1725735651175,0.102055,54318.0,54317.0,0.092056]
[1725735651381,0.103055,54318.0,54317.0,0.092056]
[1725735652277,0.100055,54318.0,54317.0,0.092056]
[1725735652674,0.093055,54318.0,54317.0,0.092056]
[1725735652886,0.098055,54318.0,54317.0,0.092056]
[1725735654080,0.093055,54318.0,54317.0,0.092056]
[1725735654386,0.097055,54318.0,54317.0,0.092056]
[1725735654587,0.096055,54318.0,54317.0,0.092056]
[1725735654882,0.092055,54318.0,54317.0,0.092056]
[1725735655082,0.097055,54318.0,54317.0,0.092056]
[1725735655879,0.096055,54318.0,54317.0,0.092056]
[1725735656283,0.097055,54318.0,54317.0,0.092056]
[1725735657782,0.096055,54318.0,54317.0,0.092056]
[1725735659092,0.096055,54318.0,54317.0,0.16526199]
[1725735660087,0.096055,54318.0,54317.0,0.07324823]
[1725735660294,0.092056,54317.0,54316.0,0.07324823]
[1725735660483,0.092058,54316.0,54315.0,0.07324823]
[1725735660690,0.09206,54315.0,54314.0,0.16530823]
[1725735660882,0.092061,54314.0,54313.0,0.07324823]
[1725735661080,0.1,54314.0,54312.0,0.05493722]
[1725735661284,0.092068,54311.0,54310.0,0.092068]
[1725735661490,0.192068,54311.0,54310.0,0.092068]
[1725735662184,0.092068,54311.0,54310.0,0.092068]
[1725735663797,0.098068,54311.0,54310.0,0.092068]
[1725735664292,0.102068,54311.0,54310.0,0.092068]
[1725735664696,0.098068,54311.0,54310.0,0.092068]
[1725735664889,0.101068,54311.0,54310.0,0.092068]
[1725735665192,0.095068,54311.0,54310.0,0.092068]
[1725735665403,0.101068,54311.0,54310.0,0.092068]
[1725735668702,0.098068,54311.0,54310.0,0.092068]
[1725735669592,0.006,54311.0,54310.0,0.092068]
[1725735670388,0.001,54311.0,54310.0,0.092068]
[1725735670697,0.007,54311.0,54310.0,0.092068]
[1725735671213,0.001,54311.0,54310.0,0.092068]
[1725735671391,0.009,54311.0,54310.0,0.092068]
[1725735671901,0.006,54311.0,54310.0,0.092068]
[1725735672205,0.009,54311.0,54310.0,0.092068]
[1725735676709,0.092069,54310.0,54307.0,0.08882301]
[1725735676898,0.138169,54310.0,54307.0,0.08882301]
[1725735678301,0.141169,54310.0,54307.0,0.08882301]
[1725735678500,0.141169,54310.0,54309.0,0.09207]
[1725735680103,0.0491,54310.0,54309.0,0.09207]
[1725735680994,0.0511,54310.0,54309.0,0.09207]
[1725735681410,0.145168,54310.0,54309.0,0.09207]
[1725735681606,0.092072,54308.0,54307.0,0.05493722]
[1725735682000,0.092072,54308.0,54307.0,0.14701022]
[1725735684203,0.096072,54308.0,54307.0,0.14701022]
[1725735684499,0.096072,54308.0,54307.0,0.092073]
[1725735685711,0.099072,54308.0,54307.0,0.092073]
[1725735686303,0.095072,54308.0,54307.0,0.092073]
[1725735686603,0.100072,54308.0,54307.0,0.092073]
[1725735687405,0.095072,54308.0,54307.0,0.092073]
[1725735687614,0.101072,54308.0,54307.0,0.092073]
[1725735688404,0.101072,54308.0,54307.0,0.16532123]
[1725735689310,0.101072,54308.0,54307.0,0.092073]
[1725735697512,0.101072,54308.0,54307.0,0.192073]
[1725735699018,0.101072,54308.0,54306.0,0.12530825]
[1725735699019,0.092073,54307.0,54306.0,0.12530825]
[1725735699314,0.092073,54307.0,54306.0,0.26562249]
[1725735699524,0.092073,54307.0,54306.0,0.12530825]
[1725735699817,0.092073,54307.0,54306.0,0.21738325]
[1725735700220,0.097073,54307.0,54306.0,0.35769834]
[1725735701508,0.098073,54307.0,54306.0,0.35769834]
[1725735701703,0.098073,54307.0,54306.0,0.3576981]
[1725735704318,0.098073,54307.0,54306.0,0.12582296]
[1725735705917,0.097073,54307.0,54306.0,0.12582296]
[1725735707109,0.096073,54307.0,54306.0,0.12582296]
[1725735707711,0.097073,54307.0,54306.0,0.12582296]
[1725735708516,0.098073,54307.0,54306.0,0.12582296]
[1725735711313,0.098073,54307.0,54306.0,0.26562345]
[1725735711714,0.098073,54307.0,54306.0,0.26562424]
[1725735713220,0.097073,54307.0,54306.0,0.26562424]
[1725735713421,0.098073,54307.0,54306.0,0.26562424]
[1725735714527,0.100073,54307.0,54306.0,0.26562424]
[1725735714930,0.102073,54307.0,54306.0,0.23187628]
[1725735715226,0.102073,54307.0,54306.0,0.09156029]
[1725735715425,0.13448968,54307.0,54306.0,0.23187594]
[1725735715627,0.13548968,54307.0,54306.0,0.23187594]
[1725735717417,0.092075,54306.0,54305.0,0.21705881]
[1725735717730,0.092075,54306.0,54305.0,0.3573752]
[1725735718932,0.101075,54306.0,54305.0,0.3573752]
[1725735719432,0.101075,54306.0,54305.0,0.12549852]
[1725735724936,0.19315,54306.0,54305.0,0.03342152]
[1725735725237,0.101075,54306.0,54303.0,0.09156029]
[1725735725433,0.09208,54303.0,54302.0,0.09156029]
[1725735725639,0.09208,54303.0,54302.0,0.23187935]
[1725735726341,0.092082,54302.0,54301.0,0.125725]
[1725735727136,0.092082,54302.0,54301.0,0.033642]
[1725735727432,0.1,54304.0,54294.0,0.1479]
[1725735727433,0.092093,54296.0,54294.0,0.1479]
[1725735727632,0.092093,54296.0,54295.0,0.092094]
[1725735729346,0.097093,54296.0,54295.0,0.092094]
[1725735730833,0.098093,54296.0,54295.0,0.092094]
[1725735734342,0.05202267,54296.0,54295.0,0.23242423]
[1725735735644,0.05202267,54296.0,54295.0,0.23204631]
[1725735735829,0.05202267,54296.0,54294.0,0.12437857]
[1725735736034,0.05202267,54296.0,54294.0,0.18381108]
[1725735737345,0.05402267,54296.0,54294.0,0.092095]
[1725735737948,0.05202267,54296.0,54294.0,0.092095]
[1725735742854,0.05202267,54296.0,54295.0,0.192094]
[1725735744046,0.05302267,54296.0,54295.0,0.192094]
[1725735744652,0.009,54296.0,54295.0,0.192094]
[1725735747351,0.009,54296.0,54295.0,0.24710277]
[1725735749161,0.009,54296.0,54295.0,0.192094]
[1725735749354,0.009,54296.0,54295.0,0.33242419]
[1725735756366,0.009,54296.0,54295.0,0.192094]
[1725735757567,0.009,54296.0,54295.0,0.092094]
[1725735757867,0.009,54296.0,54295.0,0.192094]
[1725735762170,0.009,54296.0,54295.0,0.092094]
[1725735762362,0.1038,54296.0,54295.0,0.092094]
[1725735762868,0.295892,54296.0,54292.0,0.12598982]
[1725735763074,0.195892,54296.0,54293.0,0.092096]
[1725735764177,0.189892,54296.0,54293.0,0.092096]
[1725735764475,0.189892,54296.0,54294.0,0.14033643]
[1725735764656,0.189892,54296.0,54295.0,0.14033643]
[1725735764968,0.190892,54296.0,54295.0,0.14033643]
[1725735765770,0.193892,54296.0,54295.0,0.14033643]
[1725735766163,0.193892,54296.0,54295.0,0.23243043]
[1725735766565,0.189892,54296.0,54295.0,0.23243043]
[1725735766766,0.194892,54296.0,54295.0,0.23243043]
[1725735767368,0.189892,54296.0,54295.0,0.23243043]
[1725735767565,0.195892,54296.0,54295.0,0.23243043]
[1725735770973,0.195892,54296.0,54295.0,0.23243119]
[1725735771672,0.195892,54296.0,54295.0,0.23243141]
[1725735774167,0.007,54296.0,54295.0,0.42452541]
[1725735774375,0.007,54296.0,54295.0,0.33243141]
[1725735774889,0.007,54296.0,54295.0,0.4426933]
[1725735777366,0.007,54296.0,54295.0,0.33243141]
[1725735777773,0.420127,54335.0,54295.0,1.48495141]
[1725735777965,0.0458,54313.0,54312.0,0.092064]
[1725735778192,0.0458,54313.0,54312.0,0.16556226]
[1725735779470,0.0458,54313.0,54312.0,0.092064]
[1725735780364,0.0458,54313.0,54312.0,0.192064]
[1725735780776,0.0598,54313.0,54312.0,0.193064]
[1725735781176,0.1738,54313.0,54312.0,0.001]
[1725735781377,0.092065,54312.0,54299.0,0.52393051]
[1725735781579,0.1,54304.0,54301.0,0.092083]
[1725735781881,0.1411,54303.0,54301.0,0.092083]
[1725735782270,0.1411,54303.0,54299.0,0.54838929]
[1725735782271,0.1411,54303.0,54302.0,0.092082]
[1725735783075,0.1481,54303.0,54302.0,0.092082]
[1725735784177,0.0532,54303.0,54302.0,0.092082]
[1725735784580,0.0652,54303.0,54302.0,0.093082]
[1725735784769,0.0662,54303.0,54302.0,0.283082]
[1725735785583,0.0662,54303.0,54302.0,0.093082]
[1725735786378,0.0662,54303.0,54302.0,0.16658026]
[1725735788085,0.0542,54303.0,54302.0,0.16658026]
[1725735788390,0.0462,54303.0,54302.0,0.16858026]
[1725735790689,0.0472,54303.0,54302.0,0.16758026]
[1725735791488,0.0492,54303.0,54302.0,0.16758026]
[1725735791886,0.0492,54303.0,54302.0,0.16558026]
[1725735792189,0.0492,54303.0,54302.0,0.16658026]
[1725735793090,0.003,54303.0,54302.0,0.16658026]
[1725735794083,0.092074,54307.0,54304.0,0.092078]
[1725735794286,0.092074,54307.0,54306.0,0.05505356]
[1725735794585,0.14859424,54307.0,54304.0,0.282078]
[1725735794785,0.092074,54307.0,54304.0,0.282078]
[1725735795586,0.093074,54307.0,54304.0,0.282078]
[1725735796387,0.098074,54307.0,54304.0,0.283078]
[1725735796792,0.05651955,54306.0,54304.0,0.283078]
[1725735797092,0.093074,54307.0,54304.0,0.282078]
[1725735797286,0.05651955,54306.0,54304.0,0.282078]
[1725735797483,0.096074,54307.0,54305.0,0.092076]
[1725735797791,0.05651955,54306.0,54305.0,0.092076]
[1725735797993,0.005,54306.0,54305.0,0.092076]
[1725735798392,0.06151952,54306.0,54305.0,0.092076]
[1725735799298,0.005,54306.0,54305.0,0.092076]
[1725735799481,0.06151952,54306.0,54305.0,0.092076]
[1725735799799,0.05651952,54306.0,54305.0,0.092076]
[1725735800185,0.05951952,54306.0,54305.0,0.092076]
[1725735800386,0.06551952,54306.0,54305.0,0.093076]
[1725735801205,0.06351952,54306.0,54305.0,0.092076]
[1725735801386,0.007,54306.0,54305.0,0.092076]
[1725735802796,0.005,54306.0,54305.0,0.092076]
[1725735803492,0.004,54306.0,54305.0,0.12567431]
[1725735803693,0.092074,54307.0,54305.0,0.12567431]
[1725735803894,0.004,54306.0,54305.0,0.12567431]
[1725735805198,0.096075,54306.0,54305.0,0.12567431]
[1725735805599,0.092075,54306.0,54305.0,0.12567431]
[1725735806695,0.096075,54306.0,54305.0,0.12567431]
[1725735808497,0.096075,54306.0,54305.0,0.19917257]
[1725735809402,0.007,54306.0,54305.0,0.12567431]
[1725735810407,0.007,54306.0,54305.0,0.22567431]
[1725735811005,0.008,54306.0,54305.0,0.22567431]
[1725735811909,0.097075,54306.0,54305.0,0.22567431]
[1725735812300,0.097075,54306.0,54305.0,0.12567431]
[1725735812708,0.095075,54306.0,54305.0,0.12567431]
[1725735813304,0.095075,54306.0,54305.0,0.18081111]
[1725735813507,0.097075,54306.0,54305.0,0.12567431]
[1725735813708,0.100075,54306.0,54305.0,0.12567431]
[1725735813898,0.100075,54306.0,54305.0,0.18082257]
[1725735815510,0.101075,54306.0,54305.0,0.18082257]
[1725735815726,0.102075,54306.0,54305.0,0.18082257]
[1725735816209,0.101075,54306.0,54305.0,0.18082257]
[1725735816604,0.15659527,54306.0,54305.0,0.12567431]
[1725735817206,0.092083,54303.0,54302.0,0.092081]
[1725735817507,0.092087,54300.0,54292.0,0.141097]
[1725735817815,0.092089,54298.0,54297.0,0.092089]
[1725735818019,0.14860927,54298.0,54297.0,0.092089]
[1725735819301,0.14861562,54298.0,54297.0,0.092089]
[1725735819501,0.14861562,54298.0,54291.0,0.0334937]
[1725735819502,0.65952662,54298.0,54291.0,0.0334937]
[1725735819697,0.65952662,54298.0,54279.0,0.0454]
[1725735819698,0.092114,54283.0,54279.0,0.0454]
[1725735819923,0.092114,54283.0,54276.0,0.092126]
[1725735819924,0.1565366,54283.0,54276.0,0.092126]
[1725735820099,0.20260312,54291.0,54276.0,0.092126]
[1725735820100,0.1,54280.0,54276.0,0.092126]
[1725735820300,0.30260312,54280.0,54273.0,0.0454]
[1725735820496,0.1486576,54279.0,54274.0,0.092129]
[1725735820708,0.092121,54279.0,54273.0,0.0454]
[1725735821303,0.1,54274.0,54273.0,0.03389172]
[1725735821507,0.1,54274.0,54271.0,0.092134]
[1725735822015,0.092124,54277.0,54271.0,0.092134]
[1725735822312,0.092127,54276.0,54269.0,0.0804738]
[1725735822512,0.092127,54276.0,54269.0,0.0644738]
[1725735822705,0.092127,54276.0,54269.0,0.0444738]
[1725735823807,0.092127,54276.0,54269.0,0.1366118]
[1725735824708,0.092127,54276.0,54271.0,0.05514826]
[1725735825404,0.092127,54276.0,54270.0,0.14728426]
[1725735827517,0.092127,54276.0,54270.0,0.092136]
[1725735827817,0.092108,54287.0,54274.0,0.19]
[1725735828116,0.09211,54286.0,54282.0,0.19]
[1725735828305,0.09211,54286.0,54279.0,0.092119]
[1725735828306,0.09211,54286.0,54279.0,0.282119]
[1725735828702,0.09211,54286.0,54280.0,0.092117]
[1725735830313,0.092111,54285.0,54280.0,0.092117]
[1725735830516,0.03240919,54292.0,54282.0,0.092116]
[1725735830716,0.092108,54287.0,54282.0,0.092116]
[1725735831016,0.092112,54284.0,54277.0,0.092123]
[1725735831312,0.282116,54282.0,54277.0,0.092123]
[1725735831720,0.092118,54281.0,54277.0,0.0326979]
[1725735831915,0.19,54279.0,54274.0,0.092128]
[1725735833419,0.092119,54280.0,54274.0,0.092128]
[1725735837322,0.092119,54280.0,54272.0,0.19]
[1725735837620,0.092119,54280.0,54276.0,0.19]
[1725735839129,0.092119,54280.0,54275.0,0.092126]
[1725735840425,0.092119,54280.0,54276.0,0.092126]
[1725735844129,0.1442,54283.0,54271.0,0.59485631]
[1725735844130,0.1442,54283.0,54273.0,0.19]
[1725735844328,0.1442,54283.0,54282.0,0.092116]
[1725735844739,0.0988,54283.0,54282.0,0.092116]
[1725735845742,0.0497,54283.0,54282.0,0.092116]
[1725735846725,0.10624651,54283.0,54282.0,0.092116]
[1725735847633,0.10624604,54283.0,54282.0,0.092116]
[1725735848236,0.0497,54283.0,54282.0,0.092116]
[1725735848632,0.10624604,54283.0,54282.0,0.092116]
[1725735849843,0.10624604,54283.0,54282.0,0.12497107]
[1725735852434,0.0497,54283.0,54282.0,0.12497107]
[1725735852942,0.05654598,54283.0,54282.0,0.40708707]
[1725735853256,0.20271022,54283.0,54282.0,0.86765107]
[1725735853440,0.05654598,54283.0,54282.0,0.86765107]
[1725735853632,0.20271022,54286.0,54285.0,0.092111]
[1725735853832,0.0479,54293.0,54285.0,0.19]
[1725735854029,0.0479,54293.0,54289.0,0.19]
[1725735854233,0.0499,54297.0,54292.0,0.19]
[1725735854937,0.0499,54297.0,54296.0,0.092092]
[1725735856442,0.141991,54297.0,54292.0,0.092098]
[1725735856743,0.141991,54297.0,54289.0,0.19]
[1725735856744,0.141991,54297.0,54293.0,0.092097]
[1725735857735,0.141991,54297.0,54294.0,0.092094]
[1725735858844,0.092092,54296.0,54294.0,0.092094]
[1725735859640,0.092092,54296.0,54295.0,0.092094]
[1725735860549,0.092099,54293.0,54292.0,0.092097]
[1725735864949,0.0921,54292.0,54289.0,0.12489849]
[1725735865148,0.0921,54292.0,54289.0,0.092104]
[1725735865540,0.0921,54292.0,54290.0,0.092101]
[1725735869654,0.14863466,54291.0,54290.0,0.092101]
[1725735872357,0.1486356,54291.0,54290.0,0.092101]
[1725735876757,0.0921,54291.0,54290.0,0.092101]
[1725735877052,0.0921,54291.0,54285.0,0.20730258]
[1725735877053,0.092105,54288.0,54286.0,0.05512457]
[1725735877354,0.092109,54286.0,54285.0,0.09211]
[1725735878265,0.092116,54283.0,54282.0,0.092116]
[1725735879350,0.092119,54280.0,54279.0,0.16562578]
[1725735879562,0.192119,54280.0,54279.0,0.09212]
[1725735880756,0.092122,54278.0,54277.0,0.05502662]
[1725735881061,0.1,54280.0,54270.0,0.1468]
[1725735881062,0.092124,54277.0,54276.0,0.14715603]
[1725735882755,0.092124,54277.0,54276.0,0.092125]
[1725735883847,0.14867236,54277.0,54276.0,0.092125]
[1725735884243,0.092128,54275.0,54274.0,0.033082]
[1725735884449,0.09213,54274.0,54272.0,0.092131]
[1725735885259,0.09213,54274.0,54273.0,0.092131]
[1725735886653,0.092132,54273.0,54270.0,0.138935]
[1725735886857,0.092117,54282.0,54272.0,0.19]
[1725735887052,0.092118,54281.0,54276.0,0.19]
[1725735887255,0.092118,54281.0,54277.0,0.092124]
[1725735888156,0.092122,54279.0,54277.0,0.092124]
[1725735890259,0.092122,54278.0,54277.0,0.092124]
[1725735890452,0.330122,54278.0,54277.0,0.092124]
[1725735896969,0.330122,54278.0,54275.0,0.05503103]
[1725735896970,0.092126,54276.0,54275.0,0.03304219]
[1725735897169,0.092128,54275.0,54274.0,0.092129]